Cogmind - Beta 13 X3 @@@ ROGUE MODE // 2024.02.20 @ 19:27:07 Player: Minty Result: Self-destructed Performance ------------- Evolutions (4) 2000 Regions Visited (5) 1000 Robots Destroyed (48) 240 Value Destroyed (1414) 1414 Prototype IDs (6) 120 Alien Tech Used (0) 0 Bonus (467) 467 TOTAL SCORE: 5241 Bonus ------- High Alert Combat Kills 138 Follower Combat Kills 144 Entered Garrisons 200 Friendly Fire -15 Cogmind --------- Core Integrity 511/850 Matter 196/300 Energy 14/100 System Corruption 0% Temperature Cool (0) Movement Core (50) Location -6/Garrison Parts ------- > --- POWER (2) -------- (None) > --- PROPULSION (4) --- (None) > --- UTILITY (5) ------ Scrap Engine Advanced Signal Interpreter > --- WEAPON (4) ------- (None) > --- INVENTORY (5) ---- Small Storage Unit Advanced Sensor Array Improved Utility Shielding System Shield Pulse Rifle Peak State ------------ > --- POWER ------------ Engine Construct > --- PROPULSION ------- Flying NPT-XBT Exoskeleton Improved Airjet Gravmag Array > --- UTILITY ---------- Armored Scrap Engine Advanced Heat Sink Advanced Sensor Array Advanced Signal Interpreter > --- WEAPON ----------- Pulse Rifle Pulse Rifle Pulse Rifle Heavy Laser > --- INVENTORY -------- Small Storage Unit Improved Utility Shielding System Shield Subdweller Shrapnel Launcher [Rating: 68] Favorites ----------- Power Constructs Engine Constructs Propulsion Compact Wheel Treads Light Treads Leg Aluminum Leg Wheel Compact Wheel Hover Unit Airjet Flight Unit VTOL Module Utility Small Storage Unit Device Armored Scrap Engine Storage Small Storage Unit Processor Advanced Signal Interpreter Hackware Hacking Suite Protection Improved Utility Shielding Weapon Barrage Gun Energy Gun Constructs Energy Cannon Heavy Particle Cannon Ballistic Gun Barrage Gun Ballistic Cannon Battle Cannon Launcher Subdweller Shrapnel Launcher Piercing Weapon Makeshift Spear Build | -11 -10 -10 -8 -6 -6 ------- Run | Yrd Mat Sub Rec Fac Gar Slots Evolved 8 | . . . . 8 . Power 1 | . . . . 1 . Propulsion 2 | . . . . 2 . Utility 3 | . . . . 3 . Weapon 2 | . . . . 2 . Parts Attached 70 | . 5 27 11 23 4 Power 3 | . 2 1 . . . Engine 3 | . 2 1 . . . Core . | . . . . . . Reactor . | . . . . . . Propulsion 15 | . . 6 3 6 . Treads 2 | . . 2 . . . Leg . | . . . . . . Wheel 6 | . . 4 2 . . Hover 3 | . . . 1 2 . Flight 4 | . . . . 4 . Utility 11 | . 1 1 1 8 . Device 4 | . . 1 1 2 . Storage 3 | . 1 . . 2 . Processor 2 | . . . . 2 . Hackware 1 | . . . . 1 . Protection 1 | . . . . 1 . Artifact . | . . . . . . Weapon 41 | . 2 19 7 9 4 Energy Gun 17 | . 2 7 . 5 3 Energy Cannon 1 | . . . 1 . . Ballistic Gun 5 | . . 3 1 1 . Ballistic Cannon 1 | . . . 1 . . Launcher 10 | . . 6 1 2 1 Special Weapon . | . . . . . . Impact Weapon . | . . . . . . Slashing Weapon . | . . . . . . Piercing Weapon 7 | . . 3 3 1 . Special Melee Weapon . | . . . . . . Unidentified Prototypes 1 | . . . . 1 . Parts Lost 16 | . 1 4 . 2 9 Power 3 | . 1 1 . . 1 Propulsion 6 | . . 2 . 1 3 Utility 2 | . . . . . 2 Weapon 5 | . . 1 . 1 3 Highest Loss Streak 5 | . 1 1 . 2 5 To Critical Strikes . | . . . . . . Average Slot Usage (%) 81 | . 98 96 78 64 51 Engine 11 | . 13 13 12 6 2 Leg 5 | . 28 1 . . . Wheel 11 | . . 22 19 . . Hover 2 | . . . 3 4 9 Flight 1 | . . . . 7 2 Device 10 | . . 13 14 8 16 Storage 8 | . 26 14 . 3 . Processor 1 | . . . . 6 6 Protection 1 | . . . . 4 . Energy Gun 7 | . 14 12 . 8 12 Ballistic Gun 8 | . 14 9 10 3 . Launcher 1 | . . 3 . . . Piercing Weapon 4 | . . 2 10 5 . Naked Turns . | . . . . . . Heaviest Build 27 | 12 18 23 19 27 24 Greatest Support 40 | 20 20 40 32 29 29 Greatest Overweight (x) 3 | . . 1 1 3 . Average Overweight (x) . | . . . . . . Largest Inventory Capacity 8 | 8 8 8 8 8 5 Average Capacity 6 | 8 8 8 5 6 5 Most Carried 8 | 6 8 8 8 5 5 Average Carried 5 | 6 7 7 4 3 3 Final Capacity 8 | 8 8 8 5 5 5 Final Carried 8 | 6 8 8 5 4 5 Scrap Engine Consumption 27 | . . . 18 9 . Constructs Created 4 | . . . 3 . 1 Constructs Modified 5 | . . . 4 1 . Class Distribution -------------------- 58% | Mutant 18% | Construct 6% | Commander-Construct 6% | Skirmisher 5% | Commander-Mutant 3% | Sprinter Dominant Class ---------------- Mutant | -10/Materials Mutant | -10/Subcaves Construct | -8/Recycling Mutant | -6/Factory Mutant | -6/Garrison Resources | -11 -10 -10 -8 -6 -6 ----------- Run | Yrd Mat Sub Rec Fac Gar Matter Collected 1278 | 175 188 449 280 166 20 Remotely . | . . . . . . Salvage Created 2111 | . 280 277 1189 345 20 Parts 116 | . 17 22 47 30 . Haulers Intercepted . | . . . . . . Recyclers Shooed 9 | . . . 6 3 . Parts Field Recycled . | . . . . . . Retrieved Matter . | . . . . . . Parts Self-Destructed 10 | . . 10 . . . Prevented . | . . . . . . Kills | -11 -10 -10 -8 -6 -6 ------- Run | Yrd Mat Sub Rec Fac Gar Combat Hostiles Destroyed 27 | . 6 9 4 7 1 Melee 2 | . . 1 . 1 . Guns 17 | . 6 5 1 4 1 AOE 8 | . . 3 3 2 . Classes Destroyed 10 | . 2 4 4 . . Worker 5 | . . . 1 4 . Builder 6 | . 2 . 2 2 . Recycler 8 | . . . 8 . . Turret 2 | . . 2 . . . Swarmer 9 | . . 4 . 4 1 Grunt 9 | . 6 . 1 2 . Sentry 1 | . . . 1 . . Programmer 3 | . . . 2 1 . Artisan 1 | . . 1 . . . Subdweller 5 | . . 5 . . . Best Kill Streak 5 | . 3 4 5 5 1 Combat Bots Only 4 | . 3 4 3 4 1 Max Kills in Single Turn 4 | . 1 2 4 4 1 Gunslinging 1 | . . . . 1 . Exploded 3 | . . 1 3 2 . Melee 1 | . . 1 . 1 . Uniques/NPCs Destroyed . | . . . . . . Combat | -11 -10 -10 -8 -6 -6 -------- Run | Yrd Mat Sub Rec Fac Gar Hostile Shots Fired 303 | . 38 53 . 29 183 Missed 117 | . 11 14 . 9 83 Damage Taken 2763 | . 289 622 . 351 1501 Core 564 | . 52 173 . 35 304 Absorbed by Shields 30 | . . . . . 30 Redirected to Shielding 43 | . . . . 43 . Regen/Repaired (Parts) 8 | . . . . 8 . Core Remaining (%) 55 | 100 . . 10 . . Volleys Fired 112 | . 31 23 27 17 14 Largest 4 | . 2 2 2 2 4 Hottest 258 | . 70 100 68 124 258 Shots Fired 193 | . 62 40 38 28 25 Gun 165 | . 62 32 20 27 24 Cannon 17 | . . . 17 . . Launcher 11 | . . 8 1 1 1 Special . | . . . . . . Kinetic 88 | . 31 20 30 6 1 Thermal 99 | . 31 19 8 17 24 Explosive 1 | . . 1 . . . Electromagnetic 5 | . . . . 5 . Robot Hit Streak 11 | . 7 11 6 4 4 Robot Miss Streak 4 | . 4 1 3 2 2 Penetration Max . | . . . . . . Secondary Targets 4 | . 2 . . 2 . Max Gunslinging Chain 1 | . 1 . . 1 . Shots Hit Robots 135 | . 39 31 32 24 9 Core Hits 73 | . 15 18 21 17 2 Critical Kills . | . . . . . . Critical Parts Destroyed . | . . . . . . Critical Strikes 6 | . 3 . 2 1 . Burn 3 | . 3 . . . . Blast 1 | . . . 1 . . Impale 2 | . . . 1 1 . Melee Attacks 46 | . . 16 22 8 . Impact . | . . . . . . Slashing . | . . . . . . Piercing 46 | . . 16 22 8 . Sneak Attacks 15 | . . 2 9 4 . Combat Hostiles . | . . . . . . Follow-up Attacks . | . . . . . . Damage Inflicted 4262 | . 535 965 1314 1266 182 Guns 1560 | . 533 351 251 272 153 Cannons 139 | . . . 139 . . Explosions 1313 | . . 466 240 582 25 Melee 1244 | . . 148 684 412 . Ramming 6 | . 2 . . . 4 Kinetic 1657 | . 283 540 556 253 25 Thermal 1296 | . 250 242 74 577 153 Explosive 35 | . . 35 . . . Electromagnetic 24 | . . . . 24 . Impact . | . . . . . . Slashing . | . . . . . . Piercing 1244 | . . 148 684 412 . Highest Corruption 2 | . 1 1 2 . . Average Corruption 1 | . 1 1 1 . . Corruption Purged . | . . . . . . Corruption Blocked . | . . . . . . Effects 13 | . 4 1 8 . . Message Errors 2 | . 1 . 1 . . Matter Fused 6 | . 3 . 3 . . Heat Flow Errors 2 | . . 1 1 . . Energy Discharges 2 | . . . 2 . . Data Loss (minor) 1 | . . . 1 . . Overload Shots . | . . . . . . Overflow Damage 458 | . . 38 238 174 8 Projectiles . | . . . . . . Explosions 123 | . . 4 . 111 8 Melee 335 | . . 34 238 63 . Knockbacks . | . . . . . . Impact . | . . . . . . Kinetic . | . . . . . . Secondary . | . . . . . . Self-Inflicted Damage 143 | . . 95 . . 48 Shots 4 | . . 3 . . 1 Rammed 2 | . . . . . 2 Targets Rammed 3 | . 1 . . . 2 Kicked 1 | . 1 . . . . Crushed . | . . . . . . Highest Temperature 200 | . 144 200 177 46 124 Average Temperature 43 | . 50 36 43 14 60 Received Heat Transfer 591 | . 162 132 . 144 153 Siege Activations . | . . . . . . Robots Corrupted . | . . . . . . Combat Hostiles . | . . . . . . Parts Fried . | . . . . . . Impact Corruptions . | . . . . . . Robots Melted . | . . . . . . Combat Hostiles . | . . . . . . Parts Melted 2 | . . . . 1 1 Heat Transferred 2649 | . 962 422 125 807 333 Parts Sabotaged . | . . . . . . Parts Stolen . | . . . . . . Parts Stripped . | . . . . . . Power Chain Reactions . | . . . . . . Alert | -11 -10 -10 -8 -6 -6 ------- Run | Yrd Mat Sub Rec Fac Gar Peak Influence 932 | . 146 . 556 932 665 Initial 725 | . . . 300 725 529 Average 418 | . 58 . 340 779 587 Maximum Alert Level 3 | . . . 2 3 2 Low Security (%) 27 | 100 100 . 12 . . Level 1 20 | . . . 48 . . Level 2 24 | . . . 38 1 100 Level 3 27 | . . . . 98 . Level 4 . | . . . . . . Level 5 . | . . . . . . High Security . | . . . . . . Max Security . | . . . . . . Squads Dispatched 5 | . 2 . . 3 . Investigation 5 | . 2 . . 3 . Extermination . | . . . . . . Reinforcement . | . . . . . . Assault . | . . . . . . Garrison . | . . . . . . Intercept . | . . . . . . Searches Triggered 1 | . . . . 1 . Construction Impeded . | . . . . . . Haulers Reinforced . | . . . . . . Active Scanning Responses . | . . . . . . Cargo Convoy Interrupts . | . . . . . . Stealth | -11 -10 -10 -8 -6 -6 --------- Run | Yrd Mat Sub Rec Fac Gar Distress Signals 1 | . . . . 1 . Communications Jammed . | . . . . . . Distress Signals . | . . . . . . Times Spotted 67 | . 7 30 1 14 15 Peak Tracking Total 18 | . 3 4 . 4 18 Tactical Retreats 5 | . . 3 . 1 1 Traps | -11 -10 -10 -8 -6 -6 ------- Run | Yrd Mat Sub Rec Fac Gar Traps Triggered 3 | . 1 . . 1 1 Indirectly . | . . . . . . Trap Hack Attempts . | . . . . . . Triggered . | . . . . . . Disarmed . | . . . . . . Reprogrammed . | . . . . . . Reused . | . . . . . . Traps Extracted . | . . . . . . Installed 1 | . . 1 . . . Triggered . | . . . . . . Machines | -11 -10 -10 -8 -6 -6 ---------- Run | Yrd Mat Sub Rec Fac Gar Machines Disabled 17 | . . 4 8 4 1 Max in Single Turn 4 | . . 3 1 4 1 Garrison Relay 1 | . . . . . 1 Machines Repaired . | . . . . . . Machines Dismantled . | . . . . . . Machines Sabotaged . | . . . . . . Overloaded Fab Kills . | . . . . . . Hacking | -11 -10 -10 -8 -6 -6 --------- Run | Yrd Mat Sub Rec Fac Gar Machines Accessed 21 | . 2 1 13 4 1 Terminals 11 | . 2 . 6 2 1 Fabricators . | . . . . . . Repair Stations . | . . . . . . Recycling Units 8 | . . . 7 1 . Scanalyzers . | . . . . . . Garrison Access 1 | . . . . 1 . Total Hacks 68 | . 5 1 51 9 2 Successful 42 | . 1 1 34 6 . Failed 26 | . 4 . 17 3 2 Catastrophic 2 | . 1 . 1 . . Database Lockouts . | . . . . . . Manual 32 | . 3 . 26 3 . Terminals 37 | . 5 . 25 5 2 Fabricators . | . . . . . . Repair Stations . | . . . . . . Recycling Units 29 | . . . 26 3 . Scanalyzers . | . . . . . . Garrison Access 1 | . . . . 1 . Terminal Hacks 12 | . 1 1 8 2 . Record 1 | . . 1 . . . Part Schematic 1 | . . . 1 . . Prototype ID Bank 1 | . . . 1 . . Terminal Index 1 | . . . 1 . . Alert Level 2 | . . . 2 . . Unreport Threat 2 | . . . 2 . . Surveillance Status 1 | . . . . 1 . Recall Investigation 1 | . . . . 1 . Zone Layout 2 | . 1 . 1 . . Fabricator Hacks . | . . . . . . Repair Station Hacks . | . . . . . . Recycling Unit Hacks 18 | . . . 17 1 . Process 3 | . . . 3 . . Report Inventory 8 | . . . 7 1 . Retrieve Matter 3 | . . . 3 . . Retrieve Components 4 | . . . 4 . . Scanalyzer . | . . . . . . Garrison Access Hacks 1 | . . . . 1 . Unlock Access 1 | . . . . 1 . Unauthorized Hacks 11 | . . . 9 2 . Terminals 5 | . . . 4 1 . Botnet 4 | . . . 3 1 . Search 1 | . . . 1 . . Fabricators . | . . . . . . Repair Stations . | . . . . . . Recycling Units 6 | . . . 5 1 . Tunnel 6 | . . . 5 1 . Scanalyzers . | . . . . . . Garrison Access . | . . . . . . Data Cores Recovered . | . . . . . . Used . | . . . . . . Hacking Detections 17 | . 2 . 11 3 1 Full Trace Events 10 | . 2 . 6 1 1 Feedback Events 2 | . 1 . 1 . . Corruption 2 | . 1 . 1 . . Feedback Blocked . | . . . . . . Robot Schematics Acquired . | . . . . . . Robots Built . | . . . . . . Authchips . | . . . . . . Time . | . . . . . . Total Robot Build Rating . | . . . . . . Part Schematics Acquired 1 | . . . 1 . . Parts Built . | . . . . . . Authchips . | . . . . . . Time . | . . . . . . Total Part Build Rating . | . . . . . . Parts Repaired . | . . . . . . Time . | . . . . . . Parts Recycled . | . . . . . . Recycled Matter 160 | . . . 160 . . Retrieved Matter 310 | . . . 310 . . Retrieved Components 17 | . . . 17 . . Parts Scanalyzed . | . . . . . . Part Schematics Acquired . | . . . . . . Parts Damaged . | . . . . . . Bothacking | -11 -10 -10 -8 -6 -6 ------------ Run | Yrd Mat Sub Rec Fac Gar Used RIF Installer . | . . . . . . Robots Hacked . | . . . . . . Non-combat . | . . . . . . Combat . | . . . . . . Robot Hacks Applied . | . . . . . . Relay Couplers Released 3 | . . . . . 3 Machine Destruction 3 | . . . . . 3 Fabnet Peak Effective % . | . . . . . . Robots Rewired 4 | . . . 4 . . Allies Hacked . | . . . . . . Hacks Repelled . | . . . . . . Allies | -11 -10 -10 -8 -6 -6 -------- Run | Yrd Mat Sub Rec Fac Gar Total Allies 4 | . . . 4 . . Largest Group 4 | . . . 4 4 . Highest-Rated Group 65 | . . . 65 65 . Highest-Rated Ally 21 | . . . 21 21 . Total Orders . | . . . . . . Ally Attacks 21 | . . . 9 12 . Total Damage 491 | . . . 190 301 . Kills 4 | . . . 1 3 . Allies Corrupted . | . . . . . . Allies Melted . | . . . . . . Intel | -11 -10 -10 -8 -6 -6 ------- Run | Yrd Mat Sub Rec Fac Gar Robot Analysis Total . | . . . . . . Derelict Logs Recovered 2 | . . 2 . . . Drone Launches . | . . . . . . Drone Recoveries . | . . . . . . Exploration | -11 -10 -10 -8 -6 -6 ------------- Run | Yrd Mat Sub Rec Fac Gar Turns Passed 2264 | 2 385 550 707 473 147 Spaces Moved 1786 | 2 231 452 492 439 170 Core 51 | . . . . . 51 Treads 16 | . . 16 . . . Legs 243 | 2 231 10 . . . Wheels 805 | . . 426 379 . . Hover 425 | . . . 113 193 119 Flight 246 | . . . . 246 . Fastest Speed 27 | 120 120 80 60 27 50 Average Speed 89 | 120 120 86 102 78 50 Slowest Speed 240 | 120 120 190 120 240 51 Overloaded Moves . | . . . . . . Propulsion Burnouts . | . . . . . . Robots Hopped 2 | . . . . 2 . Cave-ins Triggered . | . . . . . . Exploration Rate (%) 32 | 2 26 33 94 16 26 Regions Visited 5 Branch Regions 2 Pre-discovered Areas 6 | . . . 5 1 . Known Exits Taken 1 | . . . . 1 . Unknown Exits Taken 4 | 1 1 1 1 . . Scrap Searched 6 | . . 6 . . . Spaces Dug 2 | . . 1 1 . . Terrain Destroyed 166 | . . 85 15 53 13 Melee 2 | . . 1 1 . . Projectile 2 | . . . 2 . . AOE 162 | . . 84 12 53 13 Terrain Rammed . | . . . . . . Walls Destroyed . | . . . . . . Machines Disabled . | . . . . . . Actions | -11 -10 -10 -8 -6 -6 --------- Run | Yrd Mat Sub Rec Fac Gar Total 2209 | 1 276 551 638 532 211 Wait 53 | . 3 6 13 25 6 Move 1776 | 1 230 451 491 434 169 Hop 2 | . . . . 2 . Pick Up 25 | . 3 11 5 6 . Fast Attach 27 | . 3 6 6 12 . Attach 16 | . . 3 1 9 3 Detach 16 | . . . 3 8 5 Swap 27 | . 2 18 4 2 1 Drop 44 | . 3 16 15 9 1 Fire 112 | . 31 23 27 17 14 Melee 46 | . . 16 22 8 . Ram 2 | . . . . . 2 Kick 1 | . 1 . . . . Crush . | . . . . . . Escape Stasis 10 | . . . . . 10 Rewire 51 | . . . 51 . . Trap 1 | . . 1 . . . Miscellaneous . | . . . . . . Route ------- -11/Scrapyard -10/Materials (discovered 2 exits: [*Mat] / *Sub) -10/Subcaves (discovered 2 exits: [*Mat] / *Rec) -8/Recycling -6/Factory -6/Garrison (discovered 1 exit: *Fac) History --------- Turn | Location | Event 1 | -11/Scrapyard | Discovered new exit (range 1) 3 | -11/Scrapyard | Entered Materials 213 | -10/Materials | Discovered new exit (range 11) 311 | -10/Materials | Build established: Mutant 380 | -10/Materials | Discovered new exit (range 8) 388 | -10/Materials | Entered Subcaves 431 | -10/Subcaves | Ambushed by angry Subdweller bent on revenge 519 | -10/Subcaves | Shifting Twisted Machinery released Barrage Gun 542 | -10/Subcaves | Shifting Twisted Machinery released Sub. Optics 581 | -10/Subcaves | Learned location of 1 exit from Materials 629 | -10/Subcaves | Core integrity fell below 50% 661 | -10/Subcaves | Visited Clippyterm 803 | -10/Subcaves | Discovered new exit (range 10) 856 | -10/Subcaves | Core integrity fell below 20% 899 | -10/Subcaves | Discovered new exit (range 14) 938 | -10/Subcaves | Entered Recycling 941 | -8/Recycling | Found Scrap Engine 1375 | -8/Recycling | Build established: Construct 1619 | -8/Recycling | Discovered new exit (range 8) 1645 | -8/Recycling | Entered Factory 1645 | -6/Factory | Accompanied by 4 allies 1645 | -6/Factory | Evolved 8 slots: Power x1, Propulsion x2, Utility x3, Weapon x2 1815 | -6/Factory | Lost 3 allies 1995 | -6/Factory | Search patrols dispatched 2116 | -6/Factory | Identified exit to Garrison 2118 | -6/Factory | Entered Garrison 2135 | -6/Garrison | Garrison Relay disabled 2144 | -6/Garrison | Triggered checkpoint 2221 | -6/Garrison | Lost 5 parts (1p1n3w) 2222 | -6/Garrison | Spotted B-75 Beast 2252 | -6/Garrison | Discovered new exit (range 12) 2257 | -6/Garrison | Identified exit to Factory 2259 | -6/Garrison | Attempted to access garrison exit controls, blocked by remote lockdown 2265 | -6/Garrison | Self-destructed Last Messages --------------- 02221_ Field strength at 7. 02221_ Penetrated by Slug. 02221_ Stasis field depleted. 02224_ Slug penetrates Wall. 02227_ Slug penetrates G-50 Soldier. 02227_ Slug penetrates Wall. 02228_ Gravmag Array destroyed. 02245_ VTOL Module melted. 02245_ S-27 Virus destroyed. 02249_ Adv. Heat Sink destroyed. 02251_ Acquired 20 matter. 02252_ EXIT=FOUND 02257_ EXIT=IDENTIFIED: FACTORY 02259_ Attempting to access garrison exit controls... 02259_ Remote lockdown engaged. 02262_ Arm. Scrap Engine destroyed. 02262_ Scrap Engine core remains intact and functional. 02264_ Slammed into S-27 Virus. 02264_ Adv. Signal Interpreter broken. 02264_ Destabilizing: Short circuit. Map ----- +----------------------------------------------------+ | ?????????????????????????????????????????????????? | | ?????????????????????????????????????????????????? | | ?????????????????????????????????????????????????? | | ?????????????????????????????????????????????????? | | ?????????????????????????????????????????????????? | | ?????????????????????????????????????????????????? | | ?????????????????????????????????????????????????? | | ?????????????????????????????????????????????????? | | ?????????????????????????????????????????????????? | | ?????????????????????????????????????????????????? | | ?????????????????????????????????????????????????? | | ?????????????????????????????????????????????????? | | ?????????????????????????????????????????????????? | | ?????????????????????????????????????????????????? | | ?????????????????????????????????????????????????? | | ?????????????????????????????????????????????????? | | ?????????????????????????????????????????????????? | | ?????????????????????????????????????????????????? | | ?????????????????????????????????????????????????? | | ?????????????????????????????????????????????????? | | ?????????????????????????????????????????????????? | | ?????????????????????????????????????????????????? | | ?????????????????????#####???????????????????????? | | ?????????????????????# #???????????????????????? | | ?????????????????????# < ###########?????????????? | | ?????????????????????# @ sg l #?????????????? | | ?????????????????????# s sg Yg #?????????????? | | ?????????????????????############g ####### #?????? | | ????????????????????????????????# "#? | | ????????????????????????????????# ########??????? | | ????????????????????????????????# #?????????????? | | ????????????????????????????????# #?????????????? | | ????????????????????????????????# #?????????????? | | ????????????????????????????????# #?????????????? | | ????????????????????????????????# /?????????????? | | ????????????????????????????????# #?????????????? | | ????????????????????????????????# #?????????????? | | ????????????????????????????????# #?????????????? | | ????????????????????????????????# #??????######"" | | ????????????????????????????????# ######## | | ????????????????????????????????# | | ????????????????????????????????# | | ????????????????????????????????########### ## | | ????????????????????????????????????????### ## | | ????????????????????????????????????????# | | ????????????????????????????????????????# | | ????????????????????????????????????????# | | ????????????????????????????????????????# | | ????????????????????????????????????????###% ## | | ?????????????????????????????????########## ## | +----------------------------------------------------+ Best States ------------- Heat Dissipation 56 Energy Generation 15 Energy Capacity 500 Matter Stores 300 Matter Capacity 300 Sight Range 16 Robot Scan Range 16 Terrain Scan Density 10 Utility Shielding 66 Evasion (%) 64 Targeting Accuracy 5 Recoil Reduction 2 Offensive Hacking 10 Item Schematics ----------------- Hacking Suite | -8/Recycling | Hacked Robot Schematics ------------------ None Fabricated ------------ Nothing Alien Tech Used ----------------- None Achievements -------------- None Challenges ------------ None Game ------ Seed EncryptedFissionGenerator Manual? 0 Play Time 00:24:38 Cumulative 667.1 hours Start 2024.02.20 @ 19:02:46 End 2024.02.20 @ 19:27:07 Sessions 1 Manual Loads 0 Difficulty Rogue Special Mode None Game No. 669 Rogue 394 Adventurer 123 Explorer 152 Win Type - Total 25 Types 19/0/4/1/0/0/0/1/0 Lore% 80 Gallery% 91 Achievement% 76 Wizard Run 0 Options --------- Layout 0 ASCII 0 Keyboard 1 Movement Numpad Keybinds 0 Fullscreen 2 Font 18/SmallcapsGlow Map View 76x50 Zoom Use 0% Tactical HUD 1 Map Filters NONE Filters NONE Steam 1 RUN: 74cf8d5f-d553-420d-8a71-d50bd987c606